bitfinex-derivatives/quotes_ETHF0:USTF0_20251210
["timestamp","ask_amount","ask_price","bid_price","bid_amount"]
[1765409732293,2.84922694,3331.1,3331.0,1.61787]
[1765409732493,2.84922694,3331.1,3331.0,2.97487]
[1765409735594,2.84922694,3331.1,3331.0,1.61787]
[1765409736390,3.92947922,3331.1,3331.0,2.97487]
[1765409736592,3.92947922,3331.1,3331.0,0.15007]
[1765409739998,1.3767,3330.2,3330.1,6.0326]
[1765409740294,2.7258,3330.2,3330.1,4.82571]
[1765409740495,3.80631979,3330.2,3330.1,3.35791]
[1765409740691,7.01411979,3330.2,3330.1,0.15011]
[1765409741084,8.04471222,3330.2,3330.1,0.15011]
[1765409741996,7.01411979,3330.2,3330.1,0.15011]
[1765409744994,8.04471222,3330.2,3330.1,0.15011]
[1765409748702,7.01411979,3330.2,3330.1,0.15011]
[1765409751396,10.86711979,3330.2,3330.1,0.15011]
[1765409760810,7.0608,3330.2,3330.1,3.94910243]
[1765409761007,3.2078,3330.2,3330.1,3.94910243]
[1765409761221,3.2078,3330.6,3330.5,2.7422]
[1765409761512,3.2078,3330.6,3330.5,3.5334]
[1765409761913,4.4994,3330.6,3330.5,2.7422]
[1765409763412,3.2078,3330.6,3330.5,2.7422]
[1765409764415,3.4427,3331.0,3330.9,2.74218]
[1765409764611,3.4427,3331.0,3330.5,0.7912]
[1765409764612,3.21122694,3331.1,3331.0,2.74217]
[1765409764814,3.21122694,3331.1,3331.0,4.56396243]
[1765409765407,5.78522694,3331.1,3331.0,3.77276243]
[1765409765608,4.50282694,3331.1,3331.0,2.74217]
[1765409766516,5.78522694,3331.1,3331.0,2.74217]
[1765409766712,5.78522694,3331.1,3331.0,0.15007]
[1765409767110,6.86561557,3331.1,3331.0,0.15007]
[1765409768019,2.574,3330.3,3330.2,2.5921]
[1765409768519,2.574,3330.3,3330.2,1.44161]
[1765409769309,2.574,3330.3,3330.2,2.74221]
[1765409771421,2.574,3330.3,3330.2,0.15011]
[1765409771816,2.574,3330.3,3330.2,1.36871]
[1765409772222,3.65462239,3330.3,3330.2,0.06096342]
[1765409772425,2.4403,3329.7,3329.6,0.00450207]
[1765409772623,5.6481,3329.7,3329.6,0.15464207]
[1765409772927,6.72891056,3329.7,3329.6,0.15464207]
[1765409773428,6.72891056,3329.7,3329.6,0.15778616]
[1765409773624,0.7458,3329.0,3328.6,1.2186]
[1765409773828,3.1861,3329.0,3328.9,0.15017]
[1765409774132,2.4403,3328.3,3328.2,2.71198906]
[1765409774331,2.4403,3328.3,3328.2,2.4676]
[1765409774624,2.44296428,3328.3,3328.2,2.6203436]
[1765409776430,2.44296428,3328.3,3328.2,2.85973401]
[1765409777130,1.19936428,3328.3,3328.2,2.85973401]
[1765409777630,2.44296428,3328.3,3328.2,2.85973401]
[1765409779727,0.00266428,3328.3,3328.2,2.85973401]
[1765409782325,2.44296428,3328.3,3328.2,1.61073401]
[1765409782525,2.44296428,3328.3,3328.2,2.85973401]
[1765409783333,1.19936428,3328.3,3328.2,2.85973401]
[1765409785131,2.44296428,3328.3,3328.2,1.3713436]
[1765409785323,5.65076428,3328.3,3328.2,0.1527436]
[1765409786430,3.1861,3328.0,3327.9,0.00450207]
[1765409786835,3.1861,3328.0,3327.9,0.15471207]
[1765409787537,3.1861,3328.0,3327.9,0.15684577]
[1765409790031,3.1861,3328.0,3327.2,0.24530062]
[1765409790335,2.4284,3327.3,3327.2,0.39554062]
[1765409790731,2.4284,3327.3,3327.2,0.15024]
[1765409791250,2.4284,3327.3,3327.2,2.56583181]
[1765409791438,1.2576,3327.3,3327.2,2.56583181]
[1765409791737,2.4284,3327.3,3327.2,2.56583181]
[1765409794636,3.2078,3327.7,3327.2,2.56583181]
[1765409794829,2.4284,3327.7,3327.6,1.39733]
[1765409795134,2.4284,3327.7,3327.6,0.15023]
[1765409795439,3.50987258,3327.7,3327.6,0.15023]
[1765409796334,2.4284,3327.3,3327.2,0.15283181]
[1765409797435,6.71779063,3327.3,3327.2,0.15283181]
[1765409801245,6.71779063,3327.3,3327.2,1.39993181]
[1765409803342,8.32502347,3327.3,3327.2,1.39993181]
[1765409803544,8.32502347,3327.3,3327.2,0.15283181]
[1765409805247,6.71779063,3327.3,3327.2,0.15283181]
[1765409806544,6.71779063,3327.3,3327.2,1.39993181]
[1765409807043,6.71779063,3327.3,3327.2,0.15283181]
[1765409808953,2.4284,3326.6,3326.5,3.2078]
[1765409809253,6.16999579,3326.6,3326.5,0.15028]
[1765409810048,6.16999579,3326.6,3326.5,0.15280594]
[1765409810255,4.56952873,3326.6,3326.5,0.15280594]
[1765409811050,4.56952873,3326.6,3326.5,2.56580594]
[1765409811051,3.50999063,3326.6,3326.5,2.56580594]
[1765409811250,3.50999063,3326.6,3326.5,1.39990594]
[1765409812255,5.63450977,3326.6,3326.5,1.39990594]
[1765409812754,3.50999063,3326.6,3326.5,1.39990594]
[1765409812951,1.08159063,3326.6,3326.5,6.45510594]
[1765409813351,2.68293551,3326.6,3326.5,6.45510594]
[1765409813552,1.08159063,3326.6,3326.5,6.45510594]
[1765409813749,0.13718705,3326.6,3326.5,6.45510594]
[1765409815164,0.13718705,3326.6,3326.5,18.33410594]
[1765409816656,0.13718705,3326.6,3326.5,24.33410594]
[1765409816867,0.13718705,3326.6,3326.5,18.33410594]
[1765409817068,0.13718705,3326.6,3326.5,21.64549855]
[1765409817861,0.13718705,3326.6,3326.5,27.64549855]
[1765409818267,0.13718705,3326.6,3326.5,21.64549855]
[1765409818463,0.13718705,3326.6,3326.5,27.64549855]
[1765409818759,5.90704488,3327.3,3327.2,2.2597]
[1765409819061,4.3057,3327.3,3327.2,2.2597]
[1765409819556,3.85384488,3327.4,3327.3,2.40994]
[1765409819751,3.85384488,3327.4,3327.3,1.26714]
[1765409819957,3.85384488,3327.4,3327.3,0.15024]
[1765409820262,2.2525,3327.4,3327.3,0.15024]
[1765409822562,3.85789097,3327.4,3327.3,0.15024]
[1765409822757,3.85789097,3327.4,3327.3,1.26714]
[1765409822964,2.2525,3327.4,3327.3,1.26714]
[1765409823164,3.85789097,3327.4,3327.3,1.26714]
[1765409823468,2.2525,3327.4,3327.3,1.26714]
[1765409823961,2.2525,3327.4,3327.3,2.40994]
[1765409824262,2.2525,3327.4,3327.3,1.26714]
[1765409824462,2.2525,3327.4,3327.3,2.40994]
[1765409827868,1.0979,3327.4,3327.3,2.40994]
[1765409828269,2.2525,3327.4,3327.3,2.40994]
[1765409828672,1.0979,3327.4,3327.3,2.40994]
[1765409829071,5.4603,3327.6,3327.5,2.40993]
[1765409829569,0.00450917,3327.7,3327.6,2.40993]
[1765409831471,3.19226554,3328.1,3328.0,2.89831]
[1765409831870,5.36396554,3328.1,3328.0,2.37691]
[1765409832070,4.26426554,3328.1,3328.0,2.37691]
[1765409832569,5.36396554,3328.1,3328.0,2.37691]
[1765409832969,2.1717,3328.1,3328.0,2.37691]
[1765409833369,1.07466428,3328.3,3328.2,2.4228]
[1765409833672,0.00266428,3328.3,3328.2,2.4228]
[1765409834374,2.17436428,3328.3,3328.2,0.1502]
[1765409835070,2.17436428,3328.3,3327.9,0.00450917]
[1765409835071,2.866,3328.0,3327.9,0.00450917]
[1765409835271,2.1717,3327.7,3326.5,3.92792594]
[1765409835467,0.6943,3327.5,3326.8,2.032]
[1765409835663,0.6943,3327.5,3326.8,5.209]
[1765409836264,0.6943,3327.5,3326.8,5.21350917]
[1765409836667,2.866,3327.5,3327.4,0.15024]
[1765409836874,2.866,3327.5,3327.4,1.31304]
[1765409838273,2.866,3327.5,3327.4,0.15024]
[1765409839965,2.1717,3326.9,3326.8,0.15476917]
[1765409846578,2.1717,3326.6,3326.5,0.00252594]
[1765409846786,5.3795,3326.6,3326.5,0.00252594]
[1765409847385,5.3795,3326.6,3326.5,0.15280594]
[1765409851589,2.0626,3326.3,3326.2,0.00450917]
[1765409852593,2.0626,3326.3,3326.2,0.15735541]
[1765409854293,0.6289,3326.5,3325.2,3.2078]
[1765409854294,2.0626,3325.3,3325.2,5.48313]
[1765409854494,2.0626,3325.3,3325.2,0.15033]
[1765409854694,2.0626,3325.3,3325.2,1.21603]
[1765409854995,2.0626,3325.3,3325.2,2.27533]
[1765409855186,2.06613884,3325.3,3325.2,2.27868436]
[1765409855392,0.00353884,3325.3,3325.2,5.48648436]
[1765409855592,1.02413884,3325.3,3325.2,2.27868436]
[1765409855795,2.06613884,3325.3,3325.2,2.27868436]
[1765409855995,0.00353884,3325.3,3325.2,5.48648436]
[1765409856192,0.00353884,3325.3,3325.2,5.53881357]
[1765409856396,1.02413884,3325.3,3325.2,2.33101357]
[1765409856600,0.00353884,3325.3,3325.2,8.33101357]
[1765409857096,0.00353884,3325.3,3325.2,20.21001357]
[1765409858897,0.00353884,3325.3,3325.2,8.33101357]
[1765409859095,0.00353884,3325.3,3325.2,20.21001357]
[1765409860294,2.06613884,3325.3,3325.2,2.33101357]
[1765409860496,2.06613884,3325.3,3325.2,1.21938436]
[1765409860700,2.06613884,3325.3,3325.2,2.27868436]
[1765409861396,0.00353884,3325.3,3325.2,2.27868436]
[1765409862098,2.06613884,3325.3,3325.2,0.15368436]
[1765409862296,2.06613884,3325.3,3325.2,2.27868436]
[1765409862491,0.00353884,3325.3,3325.2,2.27868436]
[1765409863302,2.06613884,3325.3,3325.2,0.15368436]
[1765409863502,2.06613884,3325.3,3325.2,1.21938436]
[1765409863801,2.06613884,3325.3,3325.2,2.27868436]
[1765409864099,2.06613884,3325.3,3325.2,0.15368436]
[1765409866201,2.06613884,3325.3,3325.2,1.21938436]
[1765409866598,2.06613884,3325.3,3325.2,0.15368436]
[1765409867997,2.06613884,3325.3,3325.2,2.27868436]
[1765409868205,2.06613884,3325.3,3325.2,0.15368436]
[1765409873508,2.06613884,3325.3,3325.2,2.27868436]
[1765409873703,1.02413884,3325.3,3325.2,2.27868436]
[1765409874100,2.06613884,3325.3,3325.2,2.27868436]
[1765409875708,2.06613884,3325.3,3325.2,1.21938436]
[1765409875906,2.06613884,3325.3,3325.2,2.27868436]
[1765409876313,2.06613884,3325.3,3325.2,1.21938436]
[1765409876506,2.06613884,3325.3,3325.2,2.27868436]
[1765409876914,2.06613884,3325.3,3325.2,1.21938436]
[1765409877214,2.06613884,3325.3,3325.2,0.15368436]
[1765409879314,2.06613884,3325.3,3324.9,0.00450917]
[1765409879315,2.6351,3325.0,3324.9,0.00450917]
[1765409879517,5.8429,3325.0,3324.9,0.00450917]
[1765409879708,5.8429,3325.0,3324.9,0.15485917]
[1765409880216,6.92521923,3325.0,3324.9,0.15485917]
[1765409880414,6.92521923,3325.0,3324.9,0.158563]
[1765409881110,2.3648,3324.0,3323.9,3.2078]
[1765409881303,5.5726,3324.5,3324.4,0.15037]
[1765409881910,5.5726,3324.5,3324.4,1.13547]
[1765409882116,5.5726,3324.5,3324.4,0.15285977]
[1765409883014,5.5726,3324.5,3324.4,1.13795977]
[1765409883517,2.03580917,3324.8,3324.7,2.11026]
[1765409883716,2.0851058,3324.8,3324.7,2.11026]
[1765409883918,1.0869058,3324.8,3324.7,2.11026]
[1765409884118,0.00450917,3324.8,3324.7,5.31806]
[1765409884921,2.03580917,3324.8,3324.7,5.31806]
[1765409885619,1.00270917,3324.8,3324.7,5.31806]
[1765409886218,0.00450917,3324.8,3324.7,5.31806]
[1765409886714,1.00173884,3325.3,3325.2,2.11023]
[1765409887022,0.00353884,3325.3,3325.2,2.11023]
[1765409888820,2.03483884,3325.3,3325.2,2.11023]
[1765409889011,1.00173884,3325.3,3325.2,2.11023]
[1765409889622,2.03483884,3325.3,3325.2,1.13543]
[1765409890116,2.03483884,3325.3,3325.2,2.11023]
[1765409890320,0.00353884,3325.3,3325.2,2.11023]
[1765409890515,2.03483884,3325.3,3325.2,0.15033]
[1765409890717,2.03483884,3325.3,3324.4,0.98758977]
[1765409890718,2.3957,3324.5,3324.4,0.98758977]
[1765409890914,2.3957,3324.5,3324.4,0.15285977]
[1765409891218,5.6035,3324.5,3324.4,1.13795977]
[1765409891611,5.6035,3324.5,3324.4,0.15285977]
[1765409891811,5.6035,3324.5,3324.4,2.11275977]
[1765409892425,5.6035,3324.5,3324.4,0.15285977]
[1765409892613,5.6035,3324.5,3324.4,1.13795977]
[1765409892808,3.2078,3324.5,3324.4,2.11275977]
[1765409893116,0.3644,3325.0,3324.9,2.11025]
[1765409893117,0.9982,3325.0,3324.9,2.11025]
[1765409893308,2.6127,3325.0,3324.9,1.13545]
[1765409893513,2.6127,3325.0,3324.9,0.15035]
[1765409893917,2.6127,3325.0,3324.9,1.13545]
[1765409894120,2.6127,3325.0,3324.9,0.15035]
[1765409895011,2.6127,3325.0,3324.4,0.00248977]
[1765409895217,2.5015,3324.5,3324.4,0.15285977]
[1765409899227,2.4969,3324.0,3323.9,0.15039]
[1765409899523,5.7047,3324.0,3323.9,0.15039]
[1765409899919,5.7047,3324.0,3323.9,1.06819]
[1765409900120,5.1467,3324.0,3323.9,2.08133333]
[1765409900320,1.9389,3324.0,3323.9,2.08133333]
[1765409900515,2.4926,3324.0,3323.9,0.15353333]
[1765409901128,2.4926,3324.0,3323.9,1.07133333]
[1765409901430,2.4926,3324.0,3323.9,0.15353333]
[1765409902127,2.4926,3324.0,3323.9,0.00314333]
[1765409904926,2.4614,3323.0,3322.9,3.2078]
[1765409905130,0.9987,3323.0,3322.9,5.28604]
[1765409905326,5.1467,3323.3,3323.2,1.9278]
[1765409905832,5.1467,3323.3,3323.2,1.93072364]
[1765409906224,5.1467,3323.3,3323.2,0.00292364]
[1765409906419,6.1820183,3323.3,3323.2,0.00292364]
[1765409906618,5.1467,3323.3,3323.2,0.00292364]
[1765409906829,5.1467,3323.3,3323.2,2.364e-05]
[1765409911930,5.1467,3323.3,3322.9,0.00299687]
[1765409911931,2.3274,3323.0,3322.9,2.051e-05]
[1765409912933,2.3274,3323.0,3322.9,0.15268867]
[1765409917736,1.8618,3323.0,3322.9,2.02618867]
[1765409917932,5.0696,3323.3,3323.2,0.9412]
[1765409918441,1.8618,3323.2,3323.1,1.09163]
[1765409918638,3.2078,3323.3,3322.9,0.00224867]
[1765409918639,4.1502,3323.3,3323.2,2.02393]
[1765409918837,3.2078,3323.3,3323.2,2.02393]
[1765409919143,4.1502,3323.3,3323.2,2.02393]
[1765409919435,5.0696,3323.3,3323.2,2.02393]
[1765409920635,5.0696,3323.3,3323.2,1.09163]
[1765409921236,5.0696,3323.3,3323.2,2.02393]
[1765409921937,3.2078,3323.3,3323.2,2.02393]
[1765409924740,0.94690917,3323.6,3323.5,2.55631]
[1765409924934,0.00450917,3323.6,3323.5,2.55631]
[1765409925135,3.2078,3324.1,3324.0,2.55629]
[1765409925336,5.0696,3324.1,3324.0,0.15039]
[1765409926238,2.4447,3323.5,3323.4,0.15042]
[1765409926438,5.6525,3323.5,3323.4,0.15042]
[1765409926636,2.4447,3323.0,3322.9,0.94344867]
[1765409926842,5.6525,3323.0,3322.9,0.94344867]
[1765409927546,5.6525,3323.0,3322.9,1.09388867]
[1765409929146,5.6525,3323.0,3322.9,2.02618867]
[1765409929540,5.6525,3323.0,3322.9,0.00224867]
[1765409929742,1.8618,3322.3,3322.2,0.15047]
[1765409930146,1.8618,3322.3,3322.2,2.02397]
[1765409930340,0.9424,3322.3,3322.2,2.02397]
[1765409930542,3.2078,3322.4,3322.3,2.02397]
[1765409930742,4.15276738,3322.4,3322.3,2.02704183]
[1765409931247,5.07216738,3322.4,3322.3,2.02704183]
[1765409932646,5.07216738,3322.4,3322.3,1.09474183]
[1765409932844,4.15276738,3322.4,3322.3,2.02704183]
[1765409933046,3.21036738,3322.4,3322.3,2.02704183]
[1765409933449,4.15276738,3322.4,3322.3,2.02704183]
[1765409933848,5.07216738,3322.4,3322.3,2.02704183]
[1765409936153,5.07216738,3322.4,3322.3,0.15354183]
[1765409937151,5.07216738,3322.4,3322.3,2.02704183]
[1765409937347,3.21036738,3322.4,3322.3,2.02704183]
[1765409937851,4.15276738,3322.4,3322.3,2.02704183]
[1765409938256,3.21036738,3322.4,3322.3,2.02704183]
[1765409938762,4.08066738,3322.4,3322.3,2.02704183]
[1765409939757,0.00256738,3322.4,3322.3,2.02704183]
[1765409940960,0.87286738,3322.4,3322.3,2.02704183]
[1765409941767,1.73816738,3322.4,3322.3,2.02704183]
[1765409942266,1.73816738,3322.4,3322.3,0.15354183]
[1765409942462,0.00256738,3322.4,3322.3,1.82304183]
[1765409947366,4.0781,3323.5,3323.4,1.6695]
[1765409947970,4.9434,3323.5,3323.4,1.6695]
[1765409948267,4.94721231,3323.5,3323.4,1.6695]
[1765409948466,4.08191231,3323.5,3323.4,1.6695]
[1765409948664,4.08191231,3323.5,3323.4,1.81992]
[1765409949464,4.94721231,3323.5,3323.4,1.81992]
[1765409949666,4.08191231,3323.5,3323.4,1.81992]
[1765409950360,5.22131231,3323.5,3323.4,0.97612]
[1765409950867,5.22131231,3323.5,3323.4,0.15042]
[1765409951062,5.22131231,3323.5,3323.4,0.97612]
[1765409951266,5.22131231,3323.5,3323.4,0.15042]
[1765409952776,0.8653,3322.8,3322.7,0.15044]
[1765409952975,1.7356,3322.8,3322.7,0.15044]
[1765409953473,1.7356,3322.8,3322.7,0.97614]
[1765409954175,1.7356,3322.8,3322.7,0.15044]
[1765409956477,1.7356,3322.8,3322.7,0.97614]
[1765409957177,1.7356,3322.8,3322.7,0.15044]
[1765409957778,1.7356,3322.8,3322.7,0.96464]
[1765409958376,1.7356,3322.8,3322.7,0.15044]
[1765409958571,1.7356,3322.8,3322.7,0.93844]
[1765409958776,1.7356,3322.8,3322.7,0.15044]
[1765409959883,1.7356,3322.8,3322.7,0.96464]
[1765409960380,1.7356,3322.8,3322.7,0.15044]
[1765409960683,3.88139312,3322.8,3322.7,0.15044]
[1765409961673,2.79829654,3322.8,3322.7,0.15044]
[1765409961873,2.79829654,3322.8,3322.7,1.75264]
[1765409962072,2.79829654,3322.8,3322.7,0.15044]
[1765409963181,3.88139606,3322.8,3322.7,0.15044]
[1765409964977,0.7742,3322.4,3322.3,0.00307183]
[1765409965183,5.85989654,3322.4,3322.3,0.00307183]
[1765409966583,5.85989654,3322.4,3322.3,0.15354183]
[1765409968684,4.7972,3322.4,3322.3,0.15354183]
[1765409970180,1.5739,3321.9,3321.8,0.15499917]
[1765409970375,1.5739,3321.9,3321.8,0.92209917]
[1765409970580,1.5739,3321.9,3321.8,0.15499917]
[1765409971182,3.9781,3322.0,3321.9,1.65418]
[1765409971378,4.7778,3322.0,3321.9,1.65418]
[1765409971783,3.2078,3322.0,3321.9,1.65418]
[1765409972981,3.2078,3322.0,3321.8,0.00782665]
[1765409972982,3.9781,3322.4,3322.3,1.5037]
[1765409973486,4.7778,3322.4,3322.3,1.5037]
[1765409974381,3.2078,3322.4,3322.3,1.5037]
[1765409974581,3.2078,3322.4,3322.3,1.65417]
[1765409975287,3.9781,3322.4,3322.3,1.65417]
[1765409975884,4.7778,3322.4,3322.3,1.65417]
[1765409976085,3.9781,3322.4,3322.3,1.65417]
[1765409976481,3.2078,3322.4,3322.3,1.65417]
[1765409976681,3.2078,3322.9,3322.7,0.15044]
[1765409976988,4.7778,3322.9,3322.8,1.65414]
[1765409977184,4.7778,3322.9,3322.8,0.91754]
[1765409977388,4.7778,3322.9,3322.8,1.65414]
[1765409981191,3.2078,3322.9,3322.8,1.65414]
[1765409981487,0.00381231,3323.5,3323.4,1.65412]
[1765409982785,0.77411231,3323.5,3323.4,1.65412]
[1765409983187,0.00381231,3323.5,3323.4,1.65412]
[1765409983390,1.57381231,3323.5,3323.4,1.65412]
[1765409983596,1.57381231,3323.5,3323.4,0.91752]
[1765409983997,0.00381231,3323.5,3323.4,1.65412]
[1765409984390,0.77411231,3323.5,3323.4,1.65412]
[1765409984894,1.57381231,3323.5,3323.4,0.91752]
[1765409985295,1.57381231,3323.5,3323.4,1.65412]
[1765409986793,1.57381231,3323.5,3323.4,0.91752]
[1765409987298,0.77411231,3323.5,3323.4,1.65412]
[1765409987799,0.00381231,3323.5,3323.4,1.65412]
[1765409991198,1.57381231,3323.5,3323.4,1.65412]
[1765409991400,1.57381231,3323.5,3323.4,12.81652]
[1765409991595,1.57381231,3323.5,3323.4,13.55312]
[1765409991795,0.00381231,3323.5,3323.4,13.55312]
[1765409996502,0.00381231,3323.5,3323.4,14.58827116]
[1765409996708,0.00450917,3323.8,3323.7,0.6036]
[1765409997001,0.00450917,3323.8,3323.7,0.754]
[1765409997205,0.77480917,3323.8,3323.7,12.652]
[1765409997401,0.00450917,3323.8,3323.7,12.652]
[1765409997707,0.00688199,3323.8,3323.7,12.652]
[1765409998005,1.57688199,3323.8,3323.7,0.1504]
[1765410000209,2.1277,3323.0,3322.9,3.2078]
[1765410000411,2.1277,3323.0,3322.9,4.22894]
[1765410000711,2.1277,3323.5,3323.4,1.02112]
[1765410001010,2.1277,3323.5,3323.4,0.15042]
[1765410003206,2.1277,3323.5,3323.4,1.02112]
[1765410003411,2.1277,3323.5,3323.4,1.86462]
[1765410005713,0.83728199,3323.8,3323.7,1.8646]
[1765410005913,1.64608199,3323.8,3323.7,1.8646]
[1765410006211,1.64608199,3323.8,3323.7,1.0211]
[1765410006412,1.64608199,3323.8,3323.7,0.1504]
[1765410006716,1.64608199,3323.8,3323.7,1.8646]
[1765410007913,0.00688199,3323.8,3323.7,1.8646]
[1765410008113,1.6392,3324.2,3324.1,1.7142]
[1765410008316,1.6392,3324.2,3324.1,1.02108]
[1765410008708,1.6392,3324.2,3324.1,1.86458]
[1765410009013,0.4683,3324.5,3324.4,1.86457]
[1765410009313,3.19369184,3324.5,3324.4,0.15353759]
[1765410010108,3.19369184,3324.5,3324.4,1.02423759]
[1765410011304,3.19369184,3324.5,3324.4,1.86773759]
[1765410013518,2.38489184,3324.5,3324.4,1.86773759]
[1765410013712,2.14289407,3324.5,3324.4,1.86773759]
[1765410013912,3.22534757,3324.5,3324.4,1.86773759]
[1765410014418,2.14289407,3324.5,3324.4,1.02423759]
[1765410014718,3.22537761,3324.5,3324.4,0.15353759]
[1765410015917,3.22537761,3324.5,3324.4,1.77993759]
[1765410016310,2.14289407,3324.5,3324.4,1.77993759]
[1765410016513,3.22540624,3324.5,3324.4,0.15353759]
[1765410017720,2.14289407,3324.5,3324.4,0.99413759]
[1765410018217,0.00369407,3324.5,3324.4,1.77993759]
[1765410019016,0.00369407,3324.5,3324.4,2.02436871]
[1765410019623,0.00450917,3324.8,3324.7,1.77676]
[1765410020321,1.65020917,3324.8,3324.7,0.99096]
[1765410020520,1.65378633,3324.8,3324.7,0.15036]
[1765410023327,1.65378633,3324.8,3324.7,0.99096]
[1765410023826,1.65378633,3324.8,3324.7,1.77676]
[1765410025621,1.65378633,3324.8,3324.7,0.99096]
[1765410026028,1.65378633,3324.8,3324.7,0.15036]
[1765410027426,1.65378633,3324.8,3324.7,0.99066]
[1765410027629,1.65378633,3324.8,3324.7,1.77646]
[1765410028328,1.65378633,3324.8,3324.7,0.99066]
[1765410030123,1.65378633,3324.8,3324.7,0.15036]
[1765410030924,1.65378633,3324.8,3324.7,0.91106]
[1765410031525,1.65378633,3324.8,3324.7,0.15036]
[1765410032224,1.65378633,3324.8,3324.7,0.91106]
[1765410032424,0.00808633,3324.8,3324.7,1.69486]
[1765410033030,1.9814,3325.5,3325.4,0.91103]
[1765410033227,3.06362154,3325.5,3325.4,0.91103]
[1765410033626,1.9814,3325.5,3325.4,1.69373]
[1765410033930,1.98425493,3325.5,3325.4,1.69373]
[1765410034230,1.98425493,3325.5,3325.4,0.91103]
[1765410034830,1.98425493,3325.5,3325.4,1.68693]
[1765410035429,2.32583443,3325.5,3325.4,1.68693]
[1765410035630,3.06643443,3325.5,3325.4,1.68693]
[1765410036225,3.06643443,3325.5,3325.4,0.15033]
[1765410037930,3.06643443,3325.5,3325.4,0.90223]
[1765410038633,3.06643443,3325.5,3325.4,1.64613]
[1765410038827,0.49135493,3325.5,3325.4,1.64613]
[1765410039131,0.00285493,3325.5,3325.4,1.64613]
[1765410040831,0.00285493,3325.5,3325.4,2.70645595]
[1765410041521,1.21375493,3325.5,3325.4,2.70645595]
[1765410041726,0.00450917,3325.8,3325.4,2.70645595]
[1765410041727,0.00450917,3325.8,3325.7,1.57491]
[1765410041919,0.00450917,3325.8,3325.7,2.63523595]
[1765410042721,0.00801173,3325.8,3325.7,2.63523595]
[1765410043228,1.9836,3326.5,3326.4,0.15028]
[1765410043631,3.06548023,3326.5,3326.4,0.15028]
[1765410044232,3.06866167,3326.5,3326.4,0.15028]
[1765410044629,3.06866167,3326.5,3326.1,0.00450917]
[1765410044630,1.4929,3326.2,3326.1,0.00450917]
[1765410045634,1.4929,3326.2,3326.1,0.15479917]
[1765410051242,1.4929,3326.2,3326.1,1.50389917]
[1765410052343,0.7523,3326.2,3326.1,2.56422512]
[1765410052634,0.49388144,3326.5,3326.4,1.3046]
[1765410052840,0.00318144,3326.5,3326.4,2.36492595]
[1765410053641,0.00450917,3326.8,3326.7,1.43967]
[1765410053837,0.00450917,3326.8,3326.7,2.49999595]
[1765410054035,1.9515,3327.5,3327.4,0.78724]
[1765410054635,1.95522413,3327.5,3327.4,0.79077414]
[1765410055043,1.95522413,3327.5,3327.4,1.42067414]
[1765410055243,1.95522413,3327.5,3327.4,0.79077414]
[1765410055748,1.95522413,3327.5,3327.4,0.15377414]
[1765410056248,1.95522413,3327.5,3327.4,0.78367414]
[1765410058245,3.03672042,3327.5,3327.4,1.40677414]
[1765410058548,1.95522413,3327.5,3327.4,1.40677414]
[1765410059149,3.03669392,3327.5,3327.4,1.40677414]
[1765410059950,3.03669392,3327.5,3327.4,0.78367414]
[1765410060351,4.09701987,3327.5,3327.4,0.15377414]
[1765410060650,1.3911,3327.1,3327.0,3.2078]
[1765410060852,3.53289574,3327.1,3327.0,3.2078]
[1765410061754,6.74069574,3327.1,3327.0,0.15334191]
[1765410062558,5.68036979,3327.1,3327.0,0.15334191]
[1765410062764,5.68036979,3327.1,3327.0,0.87074191]
[1765410063163,2.47256979,3327.1,3327.0,0.87074191]
[1765410063661,2.47256979,3327.1,3327.0,0.15334191]
[1765410069972,5.68036979,3327.1,3327.0,0.15334191]
[1765410071566,5.68036979,3327.1,3327.0,1.53564191]
[1765410071759,0.00372413,3327.5,3327.4,1.53254]
[1765410071961,1.16662413,3327.5,3327.4,1.53254]
[1765410072166,0.44242413,3327.5,3327.4,1.53254]
[1765410076468,0.00372413,3327.5,3327.4,1.53254]
[1765410077074,0.44242413,3327.5,3327.4,1.53254]
[1765410078678,0.00372413,3327.5,3327.4,1.53254]
[1765410079472,1.16662413,3327.5,3327.4,1.53254]
[1765410079877,0.44242413,3327.5,3327.4,1.53254]
[1765410080076,1.89492413,3327.5,3327.4,1.53254]
[1765410080277,1.89492413,3327.5,3327.4,0.81904]
[1765410080479,1.89492413,3327.5,3327.4,1.53254]
[1765410080973,0.00372413,3327.5,3327.4,1.53254]
[1765410081372,1.89492413,3327.5,3327.4,1.53254]
[1765410081968,1.89492413,3327.5,3327.4,13.41154]
[1765410082279,1.16662413,3327.5,3327.4,13.41154]
[1765410082482,1.89492413,3327.5,3327.4,13.41154]
[1765410082674,1.89492413,3327.5,3327.4,14.47072138]
[1765410082869,1.89492413,3327.5,3327.4,13.41154]
[1765410083079,1.89492413,3327.5,3327.4,14.47072138]
[1765410083878,2.97631893,3327.5,3327.4,12.69804]
[1765410084575,2.97631893,3327.5,3327.4,1.53254]
[1765410084778,2.97631893,3327.5,3327.4,0.81904]
[1765410084975,2.97631893,3327.5,3327.4,1.53254]
[1765410085278,2.97631893,3327.5,3327.4,2.59172138]
[1765410086180,1.89492413,3327.5,3327.4,2.59172138]
[1765410086779,0.00372413,3327.5,3327.4,2.59172138]
[1765410089382,0.00300616,3327.8,3327.7,1.53452]
[1765410089576,0.00300616,3327.8,3327.7,5.80150138]
[1765410090388,0.00542516,3327.8,3327.7,5.80150138]
[1765410093589,0.00542516,3327.8,3327.7,4.74232]
[1765410093790,0.00542516,3327.8,3327.7,5.80150138]
[1765410094290,0.00542516,3327.8,3327.7,4.74232]
[1765410094491,0.68362516,3327.8,3327.7,4.74232]
[1765410094692,1.39212516,3327.8,3327.7,4.02682]
[1765410095092,1.39212516,3327.8,3327.7,4.74232]
[1765410095486,1.39212516,3327.8,3327.7,4.02682]
[1765410095686,1.39212516,3327.8,3327.7,3.35802]
[1765410096085,1.39212516,3327.8,3327.7,4.06222]
[1765410098086,1.39212516,3327.8,3327.7,4.77772]
[1765410100092,1.39212516,3327.8,3327.7,4.06222]
[1765410100291,1.39212516,3327.8,3327.7,4.77772]
[1765410102492,0.68362516,3327.8,3327.7,4.77772]
[1765410102889,1.39212516,3327.8,3327.7,4.77772]
[1765410103995,0.68362516,3327.8,3327.7,1.56992]
[1765410107096,1.7649254,3327.8,3327.7,1.56992]
[1765410108795,1.0867254,3327.8,3327.7,1.56992]